bitfinex-derivatives/quotes_SOLF0:USTF0_20260121
["timestamp","ask_amount","ask_price","bid_price","bid_amount"]
[1769021123606,12.94067125,127.08,127.02,7.5609719]
[1769021124214,2.64518721,127.09,127.02,14.6523719]
[1769021124603,8.49891041,127.09,127.02,14.6523719]
[1769021125211,8.49891041,127.11,127.04,7.5609719]
[1769021126906,7.0876,127.09,127.04,7.5609719]
[1769021127102,8.49891041,127.11,127.04,14.6510719]
[1769021127306,8.49891041,127.11,127.04,7.5609719]
[1769021127504,7.0876,127.09,127.04,7.5609719]
[1769021128210,12.93233554,127.08,127.01,17.29815911]
[1769021128399,12.93233554,127.08,127.01,14.6529719]
[1769021128802,12.93233554,127.08,127.02,7.5609719]
[1769021129403,7.0876,127.09,127.03,7.5609719]
[1769021131508,12.88433735,127.08,127.01,7.092]
[1769021131716,12.88433735,127.08,127.01,14.6529719]
[1769021132410,7.0888,127.07,127.01,14.6529719]
[1769021132811,2.64518721,127.09,127.03,7.5609719]
[1769021133015,5.78447068,127.1,127.03,7.5609719]
[1769021133710,7.0876,127.09,127.04,7.5609719]
[1769021133908,2.64518721,127.11,127.04,7.5609719]
[1769021135014,7.087,127.1,127.04,7.5609719]
[1769021135215,7.087,127.1,127.04,14.6512719]
[1769021135411,7.087,127.1,127.04,7.5609719]
[1769021136504,123.26845155,127.16,127.06,7.5609719]
[1769021136815,5.73918537,127.14,127.07,7.5609719]
[1769021137002,8.38437258,127.14,127.07,7.5609719]
[1769021137414,5.73918537,127.13,127.05,7.5609719]
[1769021137714,2.64518721,127.14,127.05,7.5609719]
[1769021137715,5.72818775,127.11,127.05,7.5609719]
[1769021137916,9.73238721,127.1,127.04,7.5609719]
[1769021138910,5.72818775,127.11,127.04,7.5609719]
[1769021139116,15.44889754,127.12,127.04,7.5609719]
[1769021139310,9.73158721,127.12,127.04,7.5609719]
[1769021139617,9.73158721,127.12,127.05,7.5609719]
[1769021141013,9.73158721,127.12,127.05,14.6506719]
[1769021142115,9.73158721,127.12,127.05,7.5609719]
[1769021142322,15.41703477,127.12,127.05,7.5609719]
[1769021142922,5.67507924,127.1,127.04,7.0901]
[1769021143213,5.67507924,127.1,127.04,14.6510719]
[1769021144414,12.76217924,127.1,127.04,7.5609719]
[1769021144620,15.40736645,127.1,127.04,7.5609719]
[1769021146416,15.40736645,127.1,127.02,6.9673426]
[1769021146417,12.71537746,127.09,127.02,6.9673426]
[1769021148122,12.71537746,127.09,127.02,14.0587426]
[1769021148822,5.60836785,127.07,127.0,7.0922]
[1769021149020,2.64518721,127.08,127.0,6.9673426]
[1769021149917,9.73358721,127.08,127.01,14.0593426]
[1769021150121,2.64518721,127.08,127.02,6.9673426]
[1769021150317,2.64518721,127.1,127.02,6.9673426]
[1769021150624,8.23466903,127.11,127.02,6.9673426]
[1769021151922,2.64518721,127.09,127.03,7.0909]
[1769021152122,2.64518721,127.09,127.03,14.0582426]
[1769021152326,2.64518721,127.09,127.04,6.9673426]
[1769021159217,12.66719424,127.1,127.04,6.9673426]
[1769021159425,8.91554991,127.09,127.04,6.9673426]
[1769021159622,6.27105294,127.08,127.02,7.33936959]
[1769021159812,5.50218163,127.08,127.02,7.33936959]
[1769021160413,2.64518721,127.09,127.03,7.33936959]
[1769021160825,8.13917521,127.11,127.03,7.33936959]
[1769021161128,2.64518721,127.11,127.04,7.33936959]
[1769021161631,9.73168721,127.11,127.05,7.33936959]
[1769021162326,2.64518721,127.11,127.05,14.42916959]
[1769021162529,2.64518721,127.11,127.05,7.33936959]
[1769021164329,15.20157752,127.11,127.05,7.33936959]
[1769021165927,2.64518721,127.11,127.06,7.33936959]
[1769021166127,8.09931685,127.11,127.04,7.33936959]
[1769021166530,8.0916323,127.13,127.05,7.33936959]
[1769021166830,2.64518721,127.11,127.05,7.33936959]
[1769021167230,8.0916323,127.11,127.05,7.33936959]
[1769021168132,7.0871,127.1,127.05,7.33936959]
[1769021168439,12.52594393,127.1,127.03,14.42976959]
[1769021169627,5.43884393,127.1,127.05,7.33936959]
[1769021169835,2.64518721,127.11,127.05,7.33936959]
[1769021170035,12.51021135,127.12,127.05,7.33936959]
[1769021170838,2.64518721,127.13,127.07,7.33936959]
[1769021171040,6.2708207,127.12,127.07,7.33936959]
[1769021171241,15.14716493,127.13,127.07,7.33936959]
[1769021171539,6.27039215,127.12,127.07,7.33936959]
[1769021171740,7.086,127.12,127.07,7.33936959]
[1769021172036,6.27082332,127.11,127.07,7.33936959]
[1769021172240,7.086,127.12,127.07,7.33936959]
[1769021172743,8.06186493,127.13,127.07,7.33936959]
[1769021173044,6.2699974,127.12,127.07,7.33936959]
[1769021173339,8.06186493,127.13,127.07,7.33936959]
[1769021173539,6.26988503,127.12,127.07,7.33936959]
[1769021173748,8.06186493,127.13,127.07,7.33936959]
[1769021173941,6.26988503,127.12,127.07,7.33936959]
[1769021174139,15.14726493,127.13,127.07,7.33936959]
[1769021174336,6.2702023,127.12,127.07,7.33936959]
[1769021174644,15.14726493,127.13,127.07,7.33936959]
[1769021175546,15.14726493,127.13,127.07,14.42806959]
[1769021176237,12.46148325,127.15,127.09,14.10692807]
[1769021176441,6.26766633,127.14,127.09,14.10692807]
[1769021176639,6.26766633,127.13,127.09,14.10692807]
[1769021176942,10.005341,127.17,127.1,14.10632807]
[1769021177242,6.26732435,127.16,127.11,7.01952807]
[1769021177444,8.00849905,127.17,127.11,7.01952807]
[1769021177631,6.2639816,127.16,127.11,7.01952807]
[1769021177837,5.36331184,127.16,127.08,7.01952807]
[1769021178344,15.09269905,127.15,127.08,7.01952807]
[1769021178648,15.09269905,127.15,127.05,110.2834]
[1769021178649,5.35667839,127.14,127.06,7.01952807]
[1769021179740,12.44167839,127.14,127.07,14.10802807]
[1769021179938,12.44167839,127.14,127.07,7.01952807]
[1769021180444,7.98884805,127.11,127.03,7.01952807]
[1769021181348,15.07534805,127.11,127.04,7.01952807]
[1769021182148,2.64518721,127.13,127.05,7.01952807]
[1769021182344,6.26216864,127.12,127.05,7.01952807]
[1769021182544,5.33104168,127.12,127.05,7.01952807]
[1769021183246,12.41714168,127.12,127.05,14.10932807]
[1769021184151,12.41714168,127.12,127.06,7.01952807]
[1769021184853,15.06151974,127.12,127.06,7.01952807]
[1769021185343,15.06151974,127.12,127.05,14.10932807]
[1769021185548,2.64437806,127.1,127.05,14.10932807]
[1769021186242,7.97541974,127.12,127.06,14.10872807]
[1769021186746,2.64437806,127.12,127.06,14.10872807]
[1769021187650,9.73027806,127.12,127.06,7.01952807]
[1769021188951,15.0250955,127.12,127.05,7.0898]
[1769021189148,15.0250955,127.12,127.06,7.01952807]
[1769021189746,7.93333801,127.1,127.03,14.10992807]
[1769021190452,7.93333801,127.1,127.04,7.01952807]
[1769021190856,15.02043801,127.1,127.04,7.01952807]
[1769021191451,15.02043801,127.1,127.04,14.10982807]
[1769021192047,15.02043801,127.1,127.04,7.01952807]
[1769021193854,5.28895995,127.1,127.04,14.10982807]
[1769021196062,9.73107806,127.11,127.05,14.10922807]
[1769021196353,5.25522612,127.12,127.06,7.01952807]
[1769021197058,2.64437806,127.13,127.06,7.01952807]
[1769021197261,9.73027806,127.13,127.06,7.01952807]
[1769021198763,5.24984482,127.14,127.08,14.10752807]
[1769021199062,2.64437806,127.15,127.09,7.01952807]
[1769021199361,6.26676106,127.14,127.09,7.01952807]
[1769021199551,2.64437806,127.15,127.09,7.01952807]
[1769021199856,6.26638891,127.14,127.09,7.01952807]
[1769021200159,14.96299891,127.15,127.09,14.10712807]
[1769021200349,6.26677032,127.14,127.09,14.10712807]
[1769021200551,14.96299891,127.15,127.09,14.10712807]
[1769021200751,6.26645218,127.14,127.09,14.10712807]
[1769021200957,14.96299891,127.15,127.09,14.10712807]
[1769021201153,6.26645138,127.14,127.09,14.10712807]
[1769021201454,14.96299891,127.15,127.09,7.01952807]
[1769021201655,6.26661112,127.14,127.09,7.01952807]
[1769021201853,14.96299891,127.15,127.09,7.01952807]
[1769021202058,6.26661112,127.14,127.09,7.01952807]
[1769021202257,14.96299891,127.15,127.09,7.01952807]
[1769021202457,6.26658341,127.14,127.09,7.01952807]
[1769021202761,14.96299891,127.15,127.09,7.01952807]
[1769021202961,6.26672702,127.14,127.09,7.01952807]
[1769021203151,14.96299891,127.15,127.09,7.01952807]
[1769021203347,6.26733653,127.14,127.09,7.01952807]
[1769021203548,14.96299891,127.15,127.09,7.01952807]
[1769021203755,6.26715086,127.14,127.09,7.01952807]
[1769021203954,14.96299891,127.15,127.09,7.01952807]
[1769021204252,6.26715086,127.14,127.09,7.01952807]
[1769021204452,14.96299891,127.15,127.09,7.01952807]
[1769021204659,6.26755341,127.14,127.09,7.01952807]
[1769021204860,14.96299891,127.15,127.09,7.01952807]
[1769021205173,6.26740978,127.14,127.09,7.01952807]
[1769021205465,14.92702465,127.17,127.1,14.41527224]
[1769021205652,6.26701376,127.16,127.11,7.32847224]
[1769021205965,14.92702465,127.17,127.11,7.32847224]
[1769021206656,7.0837,127.16,127.11,7.32847224]
[1769021206855,7.84362465,127.17,127.11,7.32847224]
[1769021207967,7.0837,127.16,127.11,7.32847224]
[1769021208165,5.18979773,127.16,127.09,7.32847224]
[1769021208371,2.64437806,127.15,127.09,7.32847224]
[1769021209664,2.64437806,127.15,127.09,14.41597224]
[1769021210164,5.18979773,127.16,127.1,7.32847224]
[1769021210466,9.72747806,127.17,127.1,7.32847224]
[1769021211258,12.25980639,127.16,127.09,7.32847224]
[1769021212662,12.25980639,127.16,127.09,14.41587224]
[1769021213768,12.25980639,127.16,127.1,7.32847224]
[1769021214371,9.72757806,127.17,127.11,7.32847224]
[1769021214967,2.64437806,127.17,127.11,14.41467224]
[1769021215268,5.16274419,127.18,127.12,7.32847224]
[1769021215666,7.0832,127.17,127.12,7.32847224]
[1769021216072,7.0826,127.18,127.12,7.32847224]
[1769021216371,5.15408654,127.2,127.12,7.32847224]
[1769021216564,7.79423476,127.22,127.12,7.32847224]
[1769021216767,6.25227647,127.21,127.14,7.32847224]
[1769021217071,5.1498567,127.21,127.14,7.32847224]
[1769021218564,7.0815,127.2,127.14,14.41317224]
[1769021218970,5.1498567,127.21,127.14,14.41317224]
[1769021219474,5.1498567,127.21,127.14,7.32847224]
[1769021220358,5.1498567,127.21,127.15,7.11091679]
[1769021220671,5.12938223,127.23,127.15,7.11091679]
[1769021220864,5.12938223,127.23,127.16,7.11091679]
[1769021221065,7.0795,127.24,127.17,7.11091679]
[1769021221674,5.1254639,127.23,127.17,7.11091679]
[1769021222368,7.0804,127.22,127.17,7.11091679]
[1769021222570,5.12156168,127.21,127.15,7.11091679]
[1769021223274,12.20246168,127.21,127.15,7.11091679]
[1769021223866,2.64437806,127.22,127.16,7.11091679]
[1769021224074,2.64437806,127.25,127.17,7.11091679]
[1769021224372,12.19612342,127.26,127.17,7.11091679]
[1769021224758,5.11772342,127.26,127.19,7.11091679]
[1769021225665,7.0799,127.23,127.19,7.11091679]
[1769021225860,7.75447097,127.23,127.15,14.19481679]
[1769021226373,7.0809,127.21,127.15,7.11091679]
[1769021227376,7.0802,127.23,127.16,7.11091679]
[1769021227577,2.64437806,127.24,127.17,7.11091679]
[1769021228773,7.74313733,127.24,127.17,7.11091679]
[1769021229376,14.82273733,127.24,127.17,7.11091679]
[1769021231569,14.81246963,127.22,127.15,7.11091679]
[1769021232375,14.81246963,127.22,127.15,14.19511679]
[1769021233881,14.81246963,127.22,127.16,7.11091679]
[1769021235473,7.73206963,127.22,127.16,7.11091679]
[1769021235780,7.73206963,127.22,127.12,2.64437806]
[1769021235781,12.13985668,127.21,127.13,7.38322756]
[1769021236868,12.13985668,127.21,127.14,14.46792756]
[1769021237984,2.64437806,127.22,127.15,7.38322756]
[1769021238182,7.6968529,127.22,127.15,7.38322756]
[1769021238385,7.6968529,127.22,127.16,7.38322756]
[1769021238773,2.64437806,127.22,127.16,7.38322756]
[1769021238976,14.77337747,127.24,127.16,7.38322756]
[1769021239175,12.12899941,127.24,127.18,7.38322756]
[1769021239377,7.69053962,127.25,127.18,7.38322756]
[1769021239884,7.69053962,127.23,127.16,14.46632756]
[1769021240273,14.77053962,127.23,127.17,7.083]
[1769021240478,14.77053962,127.23,127.17,14.46622756]
[1769021240672,2.64437806,127.23,127.18,7.38322756]
[1769021240974,2.64437806,127.24,127.18,14.46572756]
[1769021241775,14.76362966,127.24,127.18,7.38322756]
[1769021242183,5.0400516,127.23,127.16,14.46632756]
[1769021242378,5.0400516,127.23,127.17,14.46632756]
[1769021242983,5.0400516,127.23,127.18,7.0825]
[1769021243876,5.0400516,127.23,127.17,7.38322756]
[1769021245086,5.0400516,127.23,127.17,14.46592756]
[1769021245283,2.64437806,127.24,127.17,7.38322756]
[1769021245780,2.64437806,127.24,127.18,14.46572756]
[1769021245975,2.64437806,127.25,127.18,14.46572756]
[1769021246878,9.71775482,127.25,127.18,14.46572756]
[1769021248179,9.71775482,127.25,127.19,7.38322756]
[1769021248385,2.63905482,127.25,127.19,14.46502756]
[1769021248682,2.63905482,127.25,127.2,7.38322756]
[1769021249574,9.71785482,127.25,127.2,7.38322756]
[1769021249775,2.63905482,127.25,127.2,7.38322756]
[1769021250778,2.63905482,127.25,127.2,14.46462756]
[1769021251780,7.65073594,127.25,127.18,14.46552756]
[1769021251981,5.01168112,127.32,127.23,7.38322756]
[1769021252184,7.65073594,127.32,127.24,14.46222756]
[1769021252384,7.65073594,127.32,127.25,7.38322756]
[1769021253286,7.65073594,127.32,127.25,14.46182756]
[1769021253488,7.65073594,127.32,127.26,7.38322756]
[1769021254993,14.72553594,127.32,127.26,7.38322756]
[1769021255288,7.65073594,127.32,127.26,7.38322756]
[1769021256986,14.72553594,127.32,127.26,7.38322756]
[1769021257388,14.72553594,127.32,127.26,14.46122756]
[1769021257588,2.63905482,127.35,127.27,7.38322756]
[1769021257779,4.99569685,127.36,127.29,7.38322756]
[1769021258089,4.99569685,127.36,127.29,14.45952756]
[1769021258390,7.63475167,127.38,127.3,7.38322756]
[1769021259179,2.63905482,127.36,127.3,7.38322756]
[1769021259788,9.71165482,127.36,127.3,7.38322756]
[1769021260289,7.62970227,127.36,127.3,7.38322756]
[1769021260586,7.62726685,127.38,127.3,7.38322756]
[1769021260781,14.69806685,127.4,127.32,7.38322756]
[1769021260982,7.62726685,127.4,127.32,7.38322756]
[1769021261386,2.63905482,127.4,127.32,7.38322756]
[1769021261789,2.63905482,127.42,127.36,7.38322756]
[1769021262085,2.63905482,127.43,127.36,7.38322756]
[1769021262288,4.98572111,127.45,127.37,7.38322756]
[1769021262591,7.62477593,127.45,127.37,7.38322756]
[1769021263690,14.69247593,127.45,127.37,7.38322756]
[1769021265781,7.0668,127.47,127.38,6.72461155]
[1769021265978,4.96791666,127.5,127.4,6.72461155]
[1769021266179,4.96791666,127.52,127.42,6.72461155]
[1769021266378,9.70405482,127.5,127.42,6.72461155]
[1769021267179,114.85061666,127.52,127.44,6.72461155]
[1769021267180,12.03201666,127.52,127.44,6.72461155]
[1769021267386,14.67107148,127.52,127.44,6.72461155]
[1769021267885,2.63905482,127.5,127.44,6.72461155]
[1769021268498,12.02785265,127.51,127.44,6.72461155]
[1769021268794,14.66690747,127.51,127.44,6.72461155]
[1769021269095,14.66690747,127.51,127.41,2.63905482]
[1769021269096,4.96107979,127.5,127.41,6.72461155]
[1769021270092,12.02466575,127.49,127.41,6.72461155]
[1769021270289,4.95896575,127.49,127.42,6.72461155]
[1769021272486,4.95245331,127.52,127.43,6.72461155]
[1769021273490,4.95245331,127.52,127.45,7.0675]
[1769021273790,4.95245331,127.52,127.45,13.79211155]
[1769021274495,12.01635331,127.52,127.45,6.72461155]
[1769021274989,4.95245331,127.52,127.45,6.72461155]
[1769021275289,13.51683327,127.54,127.45,6.72461155]
[1769021275290,12.01096025,127.54,127.45,6.72461155]
[1769021275489,4.94618288,127.54,127.47,7.0663]
[1769021275791,4.94618288,127.54,127.47,6.72461155]
[1769021276090,16.01473179,127.55,127.47,6.72461155]
[1769021276289,8.95253179,127.55,127.5,6.72461155]
[1769021276491,3.179e-05,127.55,127.5,6.72461155]
[1769021276793,3.179e-05,127.55,127.52,6.72461155]
[1769021277185,3.179e-05,127.55,127.54,6.72461155]
[1769021277381,116.07852083,127.65,127.56,6.72461155]
[1769021277585,12.76393837,127.68,127.58,6.72461155]
[1769021277790,12.76393837,127.68,127.59,6.72461155]
[1769021277995,6.3098051,127.68,127.59,6.72461155]
[1769021278383,123.1091051,127.68,127.59,6.72461155]
[1769021278686,6.3108577,127.67,127.59,6.72461155]
[1769021278888,6.31264236,127.66,127.56,13.88509614]
[1769021279091,6.31264236,127.65,127.56,6.82379614]
[1769021279288,6.31264236,127.64,127.56,6.82379614]
[1769021279484,6.31264236,127.64,127.49,116.35443327]
[1769021279485,6.31364169,127.62,127.53,6.82379614]
[1769021279793,6.31364169,127.61,127.53,6.82379614]
[1769021279986,5.16364169,127.61,127.53,6.82379614]
[1769021280287,114.96994169,127.61,127.53,6.82379614]
[1769021280492,7.0602,127.59,127.49,6.82379614]
[1769021280990,124.67675187,127.62,127.51,6.82379614]
[1769021281192,6.45413327,127.65,127.54,6.82379614]
[1769021281495,109.7671,127.66,127.55,6.82379614]
[1769021281496,6.45413327,127.66,127.55,6.82379614]
[1769021282098,5.17095549,127.68,127.58,6.82379614]
[1769021282301,5.17095549,127.71,127.61,6.82379614]
[1769021282587,5.17449583,127.74,127.64,6.82379614]
[1769021283294,5.17449583,127.73,127.64,6.82379614]
[1769021283594,7.0529,127.72,127.64,6.82379614]
[1769021284096,5.17449583,127.73,127.64,6.82379614]
[1769021284889,109.6914,127.74,127.64,6.82379614]
[1769021285092,114.8899632,127.72,127.59,6.82379614]
[1769021285397,5.1815632,127.72,127.6,6.82379614]
[1769021285595,7.0534,127.71,127.62,6.82379614]
[1769021285987,109.7175,127.71,127.62,6.82379614]
[1769021286183,7.0545,127.69,127.62,6.82379614]
[1769021286483,121.34599647,127.72,127.62,6.82379614]
[1769021286685,11.63569647,127.72,127.62,6.82379614]
[1769021286889,7.0523,127.73,127.63,6.82379614]
[1769021287698,7.0523,127.73,127.65,6.82379614]
[1769021287897,12.23948284,127.75,127.65,6.82379614]
[1769021288099,114.87398284,127.75,127.65,6.82379614]
[1769021288393,5.19511597,127.78,127.66,6.82379614]
[1769021288607,5.19511597,127.77,127.66,6.82379614]
[1769021289296,7.0506,127.76,127.66,6.82379614]
[1769021289496,114.87256044,127.76,127.66,6.82379614]
[1769021289695,5.19836044,127.75,127.66,6.82379614]
[1769021290194,5.19836044,127.72,127.63,6.82379614]
[1769021290606,6.45413327,127.73,127.64,6.82379614]
[1769021290894,5.20161952,127.73,127.64,6.82379614]
[1769021291097,12.25441952,127.72,127.64,6.82379614]
[1769021291298,5.20161952,127.72,127.61,6.82379614]
[1769021291489,5.20484062,127.71,127.61,6.82379614]
[1769021291895,109.691,127.74,127.61,6.82379614]
[1769021291896,11.65897389,127.74,127.64,6.82379614]
[1769021292696,5.20484062,127.74,127.66,13.87949614]
[1769021292899,7.0506,127.76,127.67,6.82379614]
[1769021293394,11.66211506,127.78,127.68,6.82379614]
[1769021293591,11.66520525,127.75,127.65,6.82379614]
[1769021293993,7.0517,127.74,127.66,7.0557]
[1769021294701,5.21415674,127.73,127.65,6.82379614]
[1769021295794,5.21205242,127.72,127.62,13.94710071]
[1769021296202,5.21205242,127.72,127.62,6.88930071]
[1769021296699,7.0533,127.71,127.62,13.94730071]
[1769021297096,5.2151435,127.71,127.62,6.88930071]
[1769021297301,5.2151435,127.7,127.59,6.88930071]
[1769021297894,5.21832312,127.68,127.59,6.88930071]
[1769021298300,5.21832312,127.71,127.6,6.88930071]
[1769021298992,5.21832312,127.71,127.62,6.88930071]
[1769021299195,5.22135772,127.74,127.63,6.88930071]
[1769021299499,5.22135772,127.74,127.64,6.88930071]
[1769021299805,121.31664619,127.81,127.69,6.88930071]
[1769021300304,5.22431292,127.8,127.69,6.88930071]
[1769021300499,114.87864122,127.79,127.69,6.88930071]
[1769021301192,12.27644122,127.79,127.7,7.0536]
[1769021301497,12.27644122,127.79,127.7,13.94290071]
[1769021301498,5.22724122,127.79,127.7,13.94290071]
[1769021301893,7.0494,127.78,127.7,13.94290071]
[1769021302895,5.22724122,127.79,127.7,6.88930071]
[1769021303094,114.86683196,127.81,127.72,6.88930071]
[1769021303297,5.23313196,127.79,127.69,6.88930071]
[1769021303604,7.0495,127.78,127.69,6.88930071]
[1769021304392,11.69296274,127.77,127.66,13.94500071]
[1769021304596,11.69296274,127.77,127.66,6.88930071]
[1769021304597,5.23882947,127.76,127.66,6.88930071]
[1769021304802,5.23882947,127.79,127.69,6.88930071]
[1769021305298,5.23882947,127.79,127.7,13.94280071]
[1769021305299,7.0496,127.78,127.7,13.94280071]
[1769021305707,7.0496,127.78,127.7,6.88930071]
[1769021305904,12.29121239,127.78,127.7,6.88930071]
[1769021306207,12.29121239,127.78,127.7,13.94280071]
[1769021307099,13.50253327,127.8,127.71,13.94220071]
[1769021307791,5.24707806,127.79,127.71,6.88930071]
[1769021308501,5.24707806,127.79,127.68,6.88930071]
[1769021309093,5.24975707,127.78,127.69,6.88930071]
[1769021310195,114.92081503,127.77,127.69,6.88930071]
[1769021310599,5.25505049,127.76,127.65,6.88930071]
[1769021310804,5.25505049,127.74,127.65,6.88930071]
[1769021311002,5.25505049,127.73,127.65,6.88930071]
[1769021311401,7.0532,127.71,127.65,6.88930071]
[1769021311697,5.25505049,127.73,127.65,6.88930071]
[1769021312094,5.25505049,127.73,127.63,7.0572]
[1769021312409,114.98455633,127.7,127.58,6.88930071]
[1769021312602,5.25765633,127.7,127.58,6.88930071]
[1769021313302,5.25765633,127.7,127.61,6.88930071]
[1769021313811,7.0544,127.69,127.61,6.88930071]
[1769021314506,7.0535,127.71,127.62,6.88930071]
[1769021315003,7.0535,127.71,127.63,13.94670071]
[1769021315204,7.0535,127.71,127.64,6.88930071]
[1769021315800,6.42749211,127.72,127.64,13.94620071]
[1769021316407,7.0533,127.71,127.64,6.88930071]
[1769021317003,6.42749211,127.72,127.64,13.94620071]
[1769021317905,13.48019211,127.72,127.65,7.0564]
[1769021318102,6.42749211,127.75,127.65,6.88930071]
[1769021318410,6.42749211,127.75,127.66,6.88930071]
[1769021318717,13.47849211,127.75,127.68,7.0547]
[1769021319407,7.0502,127.77,127.68,6.88930071]
[1769021319609,5.27786669,127.79,127.69,6.88930071]
[1769021319906,6.42749211,127.81,127.71,6.88930071]
[1769021320107,6.64038186,127.82,127.71,6.88930071]
[1769021320108,5.27786669,127.82,127.71,6.88930071]
[1769021320309,6.16710637,127.81,127.72,6.88930071]
[1769021320616,5.27786669,127.82,127.72,13.94140071]
[1769021320811,11.44734749,127.81,127.72,13.94140071]
[1769021321008,5.28018599,127.81,127.72,13.94140071]
[1769021321312,5.28018599,127.81,127.73,13.94120071]
[1769021321814,12.32788599,127.81,127.74,7.0514]
[1769021322111,20.20808134,127.84,127.74,6.88930071]
[1769021322314,13.22281571,127.83,127.76,7.0503]
[1769021322509,6.17611571,127.82,127.75,6.88930071]
[1769021322714,7.13576625,127.86,127.76,6.88930071]
[1769021322915,18.60069257,127.86,127.76,6.88930071]
[1769021323213,121.06632632,127.85,127.76,6.88930071]
[1769021323416,6.1801468,127.84,127.76,6.88930071]
[1769021323620,114.89243689,127.84,127.76,6.88930071]
[1769021323820,5.28703689,127.84,127.76,6.88930071]
[1769021324207,121.07984086,127.83,127.73,6.88930071]
[1769021324418,121.09194086,127.82,127.73,6.88930071]
[1769021324718,6.17770397,127.81,127.73,6.88930071]
[1769021325510,7.0484,127.8,127.73,6.88930071]
[1769021325907,12.33453689,127.82,127.73,13.94090071]
[1769021326108,5.29474705,127.84,127.74,6.8771969]
[1769021326305,6.16904379,127.83,127.74,6.8771969]
[1769021326519,7.0472,127.82,127.74,13.9284969]
[1769021326918,7.0472,127.82,127.75,6.8771969]
[1769021328207,11.72646058,127.83,127.72,13.9294969]
[1769021328504,6.17149544,127.82,127.73,6.8771969]
[1769021328703,5.29896847,127.83,127.73,6.8771969]
[1769021329107,7.0473,127.82,127.73,13.9289969]
[1769021329311,5.29896847,127.83,127.73,13.9289969]
[1769021329312,5.29896847,127.83,127.74,6.8771969]
[1769021330711,7.0483,127.8,127.74,6.8771969]
[1769021331619,5.3070363,127.79,127.71,6.8771969]
[1769021332006,5.3070363,127.79,127.68,6.8771969]
[1769021332213,7.0506,127.76,127.68,6.8771969]
[1769021332417,6.42749211,127.77,127.68,6.8771969]
[1769021333122,11.73649432,127.77,127.68,6.8771969]
[1769021333515,11.48524288,127.76,127.64,6.8771969]
[1769021333716,5.3110358,127.76,127.65,6.8771969]
[1769021333910,12.3618358,127.76,127.67,6.8771969]
[1769021334126,6.42749211,127.77,127.67,6.8771969]
[1769021334619,5.3110358,127.79,127.69,6.8771969]
[1769021335216,109.6038,127.85,127.72,109.7038]
[1769021335521,124.75693,127.87,127.75,6.8771969]
[1769021335720,115.76230087,127.86,127.75,13.9277969]
[1769021336022,124.75693,127.87,127.75,6.8771969]
[1769021336320,124.75693,127.87,127.76,7.0503]
[1769021336522,6.17108066,127.86,127.76,7.0503]
[1769021336721,6.42749211,127.84,127.75,6.8771969]
[1769021336921,6.42749211,127.84,127.75,13.9279969]
[1769021337324,6.45732794,127.84,127.75,13.9279969]
[1769021337721,7.0472,127.82,127.75,13.9279969]
[1769021338419,7.0478,127.81,127.72,6.8771969]
[1769021338720,0.05712755,127.8,127.69,6.8771969]
[1769021339120,7.0496,127.78,127.7,14.44789101]
[1769021339520,109.69902755,127.8,127.7,14.44789101]
[1769021339922,109.76658647,127.75,127.66,7.39429101]
[1769021340128,0.07928647,127.75,127.66,7.39429101]
[1769021340521,0.07928647,127.75,127.67,14.44939101]
[1769021340716,13.47819211,127.76,127.67,14.44939101]
[1769021340717,13.47819211,127.76,127.67,7.39429101]
[1769021340916,6.42749211,127.79,127.69,7.39429101]
[1769021341522,7.0499,127.77,127.7,7.0535]
[1769021341721,6.42749211,127.79,127.69,7.39429101]
[1769021341722,0.10552192,127.78,127.69,7.39429101]
[1769021341924,0.10552192,127.76,127.68,7.39429101]
[1769021342930,116.19940777,127.79,127.67,7.39429101]
[1769021343433,7.0505,127.76,127.69,7.054]
[1769021344121,7.0511,127.75,127.67,7.39429101]
[1769021345032,7.0516,127.74,127.67,7.39429101]
[1769021345426,7.0516,127.74,127.67,14.44959101]
[1769021345828,7.0509,127.76,127.68,7.39429101]
[1769021346130,0.1311647,127.77,127.68,7.39429101]
[1769021346731,7.0517,127.74,127.68,7.39429101]
[1769021346927,0.16869162,127.75,127.65,7.39429101]
[1769021347330,7.22009162,127.75,127.66,14.44989101]
[1769021347537,0.16869162,127.75,127.67,7.39429101]
[1769021348040,7.0521,127.73,127.67,7.39429101]
[1769021348832,109.89475321,127.73,127.64,7.39429101]
[1769021349031,0.19305321,127.7,127.6,7.39429101]
[1769021349732,0.19305321,127.7,127.61,14.45279101]
[1769021350124,7.0549,127.68,127.61,14.45279101]
[1769021350324,7.0549,127.68,127.61,7.39429101]
[1769021350827,7.0554,127.67,127.61,7.39429101]
[1769021351232,6.62054532,127.7,127.61,7.39429101]
[1769021351736,7.0547,127.69,127.61,7.39429101]
[1769021352433,0.23998057,127.69,127.61,7.39429101]
[1769021353231,7.0549,127.68,127.61,14.45289101]
[1769021353730,7.29428057,127.69,127.62,7.058]
[1769021354130,0.23998057,127.69,127.61,7.39429101]
[1769021354838,7.0554,127.67,127.61,7.39429101]
[1769021355041,7.0554,127.67,127.58,7.39429101]
[1769021355042,0.26262855,127.67,127.58,7.39429101]
[1769021355538,110.03799495,127.68,127.58,14.45409101]